[Event "*** Titled Tuesday Blitz"]
[Site "Chess.com"]
[Date "2020.04.07"]
[Round "7"]
[White "UmutErdemGunduz"]
[Black "Mazetovic"]
[Result "0-1"]
[WhiteElo "2410"]
[BlackElo "2605"]
[TimeControl "180+1"]
[EndTime "14:18:55 PDT"]
[Termination "Mazetovic won by checkmate"]

1. e4 {[%clk 0:03:00.9]} 1... c5 {[%clk 0:03:00.9]} 2. Nf3 {[%clk 0:03:00.3]}
2... Nc6 {[%clk 0:02:59.6]} 3. d4 {[%clk 0:03:00.8]} 3... cxd4 {[%clk
0:03:00.5]} 4. Nxd4 {[%clk 0:03:01.3]} 4... g6 {[%clk 0:02:58.1]} 5. Nc3 {[%clk
0:03:01.1]} 5... Bg7 {[%clk 0:02:37]} 6. Be3 {[%clk 0:03:00]} 6... Nf6 {[%clk
0:02:25.4]} 7. Bc4 {[%clk 0:02:53.7]} 7... Qa5 {[%clk 0:02:04.5]} 8. O-O {[%clk
0:02:47.6]} 8... O-O {[%clk 0:01:59.8]} 9. Nb3 {[%clk 0:02:47.3]} 9... Qc7
{[%clk 0:01:52.4]} 10. Bg5 {[%clk 0:02:47.1]} 10... a6 {[%clk 0:01:39.3]} 11.
Bxf6 {[%clk 0:02:28.5]} 11... exf6 {[%clk 0:01:37.2]} 12. Nd5 {[%clk 0:02:28.9]}
12... Qd8 {[%clk 0:01:24.8]} 13. c3 {[%clk 0:02:28.7]} 13... b5 {[%clk
0:00:58.5]} 14. Bd3 {[%clk 0:02:26.9]} 14... d6 {[%clk 0:00:54.2]} 15. a4 {[%clk
0:02:22.6]} 15... bxa4 {[%clk 0:00:50.4]} 16. Rxa4 {[%clk 0:02:21.4]} 16... f5
{[%clk 0:00:50.3]} 17. exf5 {[%clk 0:02:18]} 17... Ne5 {[%clk 0:00:48.6]} 18.
fxg6 {[%clk 0:01:51.5]} 18... hxg6 {[%clk 0:00:46.1]} 19. Be4 {[%clk 0:01:43]}
19... Bb7 {[%clk 0:00:42.3]} 20. Rb4 {[%clk 0:01:39.1]} 20... Bxd5 {[%clk
0:00:41.4]} 21. Qxd5 {[%clk 0:01:27.5]} 21... Rb8 {[%clk 0:00:39.4]} 22. Rxb8
{[%clk 0:01:06.3]} 22... Qxb8 {[%clk 0:00:34.3]} 23. h3 {[%clk 0:00:52.2]} 23...
Kh7 {[%clk 0:00:19.3]} 24. f4 {[%clk 0:00:50]} 24... Qb6+ {[%clk 0:00:18.3]} 25.
Kh2 {[%clk 0:00:48.6]} 25... Nd7 {[%clk 0:00:18.3]} 26. f5 {[%clk 0:00:09.1]}
26... Nf6 {[%clk 0:00:14.8]} 27. fxg6+ {[%clk 0:00:08.9]} 27... fxg6 {[%clk
0:00:15.3]} 28. Qc6 {[%clk 0:00:06]} 28... Qxb3 {[%clk 0:00:14.3]} 29. Bf3
{[%clk 0:00:04.5]} 29... Qe6 {[%clk 0:00:13.9]} 30. Rd1 {[%clk 0:00:03.5]} 30...
Qe5+ {[%clk 0:00:14.1]} 31. Kh1 {[%clk 0:00:03.4]} 31... Nh5 {[%clk 0:00:13.8]}
32. Rxd6 {[%clk 0:00:03.6]} 32... Ng3+ {[%clk 0:00:13.3]} 33. Kg1 {[%clk
0:00:04.1]} 33... Qe1+ {[%clk 0:00:10.1]} 34. Kh2 {[%clk 0:00:04.6]} 34... Nf1+
{[%clk 0:00:05.1]} 35. Kg1 {[%clk 0:00:04.4]} 35... Ne3+ {[%clk 0:00:05.4]} 36.
Kh2 {[%clk 0:00:04.4]} 36... Be5+ {[%clk 0:00:05.7]} 37. g3 {[%clk 0:00:03.6]}
37... Bxg3# {[%clk 0:00:06.6]} 0-1

[Event "*** Titled Tuesday Blitz"]
[Site "Chess.com"]
[Date "2020.04.07"]
[Round "7"]
[White "Olga_Girya"]
[Black "imdvb6307"]
[Result "1-0"]
[WhiteElo "2559"]
[BlackElo "2388"]
[TimeControl "180+1"]
[EndTime "14:18:55 PDT"]
[Termination "Olga_Girya won on time"]

1. d4 {[%clk 0:03:00.9]} 1... d5 {[%clk 0:02:59.3]} 2. c4 {[%clk 0:03:00.5]}
2... c6 {[%clk 0:02:59.1]} 3. Nf3 {[%clk 0:02:58.5]} 3... Nf6 {[%clk 0:02:58.6]}
4. Nc3 {[%clk 0:02:56.1]} 4... e6 {[%clk 0:02:58.3]} 5. Bg5 {[%clk 0:02:55]}
5... Nbd7 {[%clk 0:02:57.2]} 6. cxd5 {[%clk 0:02:53.9]} 6... exd5 {[%clk
0:02:55.9]} 7. e3 {[%clk 0:02:54.5]} 7... Qa5 {[%clk 0:02:55.1]} 8. Bd3 {[%clk
0:02:49.8]} 8... Ne4 {[%clk 0:02:42.2]} 9. O-O {[%clk 0:02:50.3]} 9... Nxg5
{[%clk 0:02:33.3]} 10. Nxg5 {[%clk 0:02:49.7]} 10... Be7 {[%clk 0:02:32.8]} 11.
Qh5 {[%clk 0:02:37.8]} 11... Bxg5 {[%clk 0:02:19.1]} 12. Qxg5 {[%clk 0:02:37.8]}
12... O-O {[%clk 0:02:18.6]} 13. e4 {[%clk 0:02:28.1]} 13... h6 {[%clk
0:02:10.8]} 14. Qg3 {[%clk 0:02:23.9]} 14... Nf6 {[%clk 0:01:35.8]} 15. e5
{[%clk 0:02:21.7]} 15... Ne8 {[%clk 0:01:30.8]} 16. Rad1 {[%clk 0:02:14.4]}
16... Qb6 {[%clk 0:01:20]} 17. Rd2 {[%clk 0:02:11.8]} 17... Qc7 {[%clk 0:01:12]}
18. f4 {[%clk 0:02:09]} 18... f5 {[%clk 0:01:08.3]} 19. exf6 {[%clk 0:01:50.4]}
19... Nxf6 {[%clk 0:01:07.5]} 20. Qg6 {[%clk 0:01:46.9]} 20... Qf7 {[%clk
0:01:06.8]} 21. Re1 {[%clk 0:01:44.2]} 21... Bg4 {[%clk 0:01:04.2]} 22. h3
{[%clk 0:01:33.3]} 22... Bh5 {[%clk 0:01:03.8]} 23. Qxf7+ {[%clk 0:01:32.8]}
23... Bxf7 {[%clk 0:00:49.2]} 24. Rde2 {[%clk 0:01:33.2]} 24... Rfe8 {[%clk
0:00:48.3]} 25. Re7 {[%clk 0:01:33.5]} 25... Kf8 {[%clk 0:00:45.8]} 26. Rxe8+
{[%clk 0:01:31.6]} 26... Rxe8 {[%clk 0:00:43.3]} 27. Rxe8+ {[%clk 0:01:31.9]}
27... Nxe8 {[%clk 0:00:41.7]} 28. Kf2 {[%clk 0:01:32.8]} 28... Nd6 {[%clk
0:00:41.7]} 29. g4 {[%clk 0:01:32.1]} 29... b6 {[%clk 0:00:39.5]} 30. b4 {[%clk
0:01:27.7]} 30... b5 {[%clk 0:00:23.5]} 31. Ke3 {[%clk 0:01:24.6]} 31... Be6
{[%clk 0:00:20.6]} 32. f5 {[%clk 0:01:24.3]} 32... Bd7 {[%clk 0:00:20]} 33. Kf4
{[%clk 0:01:24.8]} 33... Ke7 {[%clk 0:00:19.7]} 34. h4 {[%clk 0:01:24.6]} 34...
Nb7 {[%clk 0:00:19.1]} 35. g5 {[%clk 0:01:21.5]} 35... hxg5+ {[%clk 0:00:18]}
36. hxg5 {[%clk 0:01:21.7]} 36... a5 {[%clk 0:00:17.9]} 37. a3 {[%clk
0:01:15.6]} 37... axb4 {[%clk 0:00:17.9]} 38. axb4 {[%clk 0:01:15.1]} 38... Nd6
{[%clk 0:00:18.1]} 39. Ne2 {[%clk 0:01:07.8]} 39... Nf7 {[%clk 0:00:16.9]} 40.
Ng3 {[%clk 0:01:05.8]} 40... Bc8 {[%clk 0:00:14.9]} 41. Nh5 {[%clk 0:01:04.6]}
41... Kf8 {[%clk 0:00:14.7]} 42. g6 {[%clk 0:00:55.5]} 42... Nh6 {[%clk
0:00:08.5]} 43. f6 {[%clk 0:00:52.3]} 43... gxf6 {[%clk 0:00:08]} 44. Nxf6
{[%clk 0:00:52.4]} 44... Ng8 {[%clk 0:00:06.7]} 45. Nxg8 {[%clk 0:00:36.7]}
45... Kxg8 {[%clk 0:00:06]} 46. Ke5 {[%clk 0:00:37.6]} 46... Kg7 {[%clk
0:00:04.6]} 47. Kd6 {[%clk 0:00:37.9]} 47... Bg4 {[%clk 0:00:03.9]} 48. Kxc6
{[%clk 0:00:37.4]} 48... Bf3 {[%clk 0:00:01]} 49. Kxb5 {[%clk 0:00:36.8]} 1-0

[Event "*** Titled Tuesday Blitz"]
[Site "Chess.com"]
[Date "2020.04.07"]
[Round "7"]
[White "norwaytoadog"]
[Black "Sesleria"]
[Result "0-1"]
[WhiteElo "2265"]
[BlackElo "1990"]
[TimeControl "180+1"]
[EndTime "14:18:56 PDT"]
[Termination "Sesleria won on time"]

1. e4 {[%clk 0:03:00.8]} 1... c5 {[%clk 0:02:59.1]} 2. Nf3 {[%clk 0:03:00.4]}
2... e6 {[%clk 0:02:59.3]} 3. d4 {[%clk 0:03:00]} 3... cxd4 {[%clk 0:02:59.5]}
4. Nxd4 {[%clk 0:03:00.3]} 4... Nc6 {[%clk 0:02:56]} 5. Nc3 {[%clk 0:03:00.2]}
5... Qc7 {[%clk 0:02:56]} 6. g3 {[%clk 0:03:00.5]} 6... a6 {[%clk 0:02:56]} 7.
Bg2 {[%clk 0:03:00.8]} 7... Nf6 {[%clk 0:02:52]} 8. O-O {[%clk 0:02:59.6]} 8...
Nxd4 {[%clk 0:02:46.3]} 9. Qxd4 {[%clk 0:02:59.5]} 9... Bc5 {[%clk 0:02:46.2]}
10. Bf4 {[%clk 0:02:59.1]} 10... d6 {[%clk 0:02:29.6]} 11. Qd2 {[%clk 0:02:56]}
11... Nd7 {[%clk 0:02:17.6]} 12. a3 {[%clk 0:02:32.5]} 12... e5 {[%clk
0:01:54.8]} 13. Nd5 {[%clk 0:02:22.7]} 13... Qd8 {[%clk 0:01:54.8]} 14. Bg5
{[%clk 0:02:20.1]} 14... f6 {[%clk 0:01:53.8]} 15. Be3 {[%clk 0:01:44.6]} 15...
O-O {[%clk 0:01:52.2]} 16. Rad1 {[%clk 0:01:38.7]} 16... Bxe3 {[%clk 0:01:26.5]}
17. Nxe3 {[%clk 0:01:37.3]} 17... Qb6 {[%clk 0:01:19.7]} 18. Qxd6 {[%clk
0:01:13.9]} 18... Qxb2 {[%clk 0:01:18.2]} 19. Bh3 {[%clk 0:00:49.7]} 19... Nb6
{[%clk 0:01:09.7]} 20. Rb1 {[%clk 0:00:41.6]} 20... Qc3 {[%clk 0:01:08.3]} 21.
Rxb6 {[%clk 0:00:39.1]} 21... Bxh3 {[%clk 0:01:07.3]} 22. Rd1 {[%clk 0:00:34.3]}
22... Rfd8 {[%clk 0:00:38.2]} 23. Qxd8+ {[%clk 0:00:33.3]} 23... Rxd8 {[%clk
0:00:38.3]} 24. Rxd8+ {[%clk 0:00:33.3]} 24... Kf7 {[%clk 0:00:38.7]} 25. Rxb7+
{[%clk 0:00:31.5]} 25... Kg6 {[%clk 0:00:38.8]} 26. Rd1 {[%clk 0:00:28.8]} 26...
Qxa3 {[%clk 0:00:37.9]} 27. Nd5 {[%clk 0:00:22.7]} 27... Qf3 {[%clk 0:00:34.9]}
28. Ne3 {[%clk 0:00:18.4]} 28... Qxe4 {[%clk 0:00:34.8]} 29. Ra7 {[%clk
0:00:14.1]} 29... Bg4 {[%clk 0:00:22.2]} 30. Nxg4 {[%clk 0:00:09.2]} 30... Qxg4
{[%clk 0:00:22.6]} 31. Ra1 {[%clk 0:00:09.4]} 31... Qc4 {[%clk 0:00:21.8]} 32.
R7xa6 {[%clk 0:00:07.7]} 32... Qxc2 {[%clk 0:00:21.6]} 33. Ra7 {[%clk
0:00:07.2]} 33... e4 {[%clk 0:00:18.3]} 34. R1a2 {[%clk 0:00:06.6]} 34... Qc1+
{[%clk 0:00:17.4]} 35. Kg2 {[%clk 0:00:06.7]} 35... e3 {[%clk 0:00:18.3]} 36.
R7a3 {[%clk 0:00:04.2]} 36... e2 {[%clk 0:00:17.6]} 37. Rxe2 {[%clk 0:00:02.4]}
37... Qc6+ {[%clk 0:00:18.5]} 38. f3 {[%clk 0:00:01.2]} 38... Qc4 {[%clk
0:00:17.3]} 0-1

[Event "*** Titled Tuesday Blitz"]
[Site "Chess.com"]
[Date "2020.04.07"]
[Round "7"]
[White "Evhen_Taranenko"]
[Black "m-garcett"]
[Result "0-1"]
[WhiteElo "2285"]
[BlackElo "1909"]
[TimeControl "180+1"]
[EndTime "14:18:59 PDT"]
[Termination "m-garcett won on time"]

1. d4 {[%clk 0:03:00.9]} 1... Nf6 {[%clk 0:02:32.3]} 2. c4 {[%clk 0:03:00.4]}
2... g6 {[%clk 0:02:32.7]} 3. Nc3 {[%clk 0:03:00.7]} 3... Bg7 {[%clk 0:02:33.4]}
4. e4 {[%clk 0:02:58.5]} 4... d6 {[%clk 0:02:34]} 5. Nf3 {[%clk 0:02:56.2]} 5...
O-O {[%clk 0:02:34.5]} 6. Bd3 {[%clk 0:02:53.6]} 6... e5 {[%clk 0:02:34.3]} 7.
d5 {[%clk 0:02:52.2]} 7... a5 {[%clk 0:02:32.4]} 8. O-O {[%clk 0:02:50.8]} 8...
Nbd7 {[%clk 0:02:24.8]} 9. Be3 {[%clk 0:02:43.5]} 9... Ng4 {[%clk 0:02:24.1]}
10. Bd2 {[%clk 0:02:33.7]} 10... Nc5 {[%clk 0:02:01.9]} 11. Be2 {[%clk
0:02:29.3]} 11... f5 {[%clk 0:01:59.7]} 12. Qc2 {[%clk 0:02:11.7]} 12... f4
{[%clk 0:01:55.6]} 13. a3 {[%clk 0:02:07.5]} 13... Bd7 {[%clk 0:01:53.5]} 14. b4
{[%clk 0:02:04.2]} 14... axb4 {[%clk 0:01:53.2]} 15. axb4 {[%clk 0:02:04.2]}
15... Na6 {[%clk 0:01:49]} 16. Ra2 {[%clk 0:01:32.8]} 16... Nxb4 {[%clk
0:01:35.6]} 17. Rxa8 {[%clk 0:01:31.7]} 17... Nxc2 {[%clk 0:01:25.3]} 18. Rxd8
{[%clk 0:01:30.7]} 18... Rxd8 {[%clk 0:01:25.6]} 19. Nb1 {[%clk 0:01:09]} 19...
Nh6 {[%clk 0:01:21.7]} 20. Rc1 {[%clk 0:01:05.6]} 20... Nd4 {[%clk 0:01:09.1]}
21. Nxd4 {[%clk 0:01:05]} 21... exd4 {[%clk 0:01:10]} 22. Bxf4 {[%clk
0:01:02.4]} 22... Ra8 {[%clk 0:01:09.4]} 23. Nd2 {[%clk 0:00:56.5]} 23... Nf7
{[%clk 0:01:02]} 24. Nf3 {[%clk 0:00:49.1]} 24... Bg4 {[%clk 0:00:56.4]} 25. h3
{[%clk 0:00:31.7]} 25... Bxf3 {[%clk 0:00:56.2]} 26. Bxf3 {[%clk 0:00:31.8]}
26... Be5 {[%clk 0:00:54]} 27. Bd2 {[%clk 0:00:17.2]} 27... Ra2 {[%clk
0:00:51.9]} 28. Be1 {[%clk 0:00:17.1]} 28... Ng5 {[%clk 0:00:46.7]} 29. Bg4
{[%clk 0:00:10.4]} 29... h5 {[%clk 0:00:43.4]} 30. Bc8 {[%clk 0:00:07.6]} 30...
b6 {[%clk 0:00:41.1]} 31. f3 {[%clk 0:00:05.4]} 31... Bf4 {[%clk 0:00:37.5]} 32.
Rd1 {[%clk 0:00:02.6]} 32... Be3+ {[%clk 0:00:28.1]} 33. Bf2 {[%clk 0:00:02.5]}
33... Bxf2+ {[%clk 0:00:26.8]} 34. Kf1 {[%clk 0:00:02.1]} 34... Be3 {[%clk
0:00:22.3]} 35. Re1 {[%clk 0:00:01.7]} 35... Rc2 {[%clk 0:00:19.1]} 0-1

[Event "*** Titled Tuesday Blitz"]
[Site "Chess.com"]
[Date "2020.04.07"]
[Round "7"]
[White "ama18"]
[Black "AlphaZ3r0"]
[Result "1-0"]
[WhiteElo "2445"]
[BlackElo "2251"]
[TimeControl "180+1"]
[EndTime "14:19:00 PDT"]
[Termination "ama18 won by checkmate"]

1. e4 {[%clk 0:03:00.9]} 1... c5 {[%clk 0:02:58.9]} 2. Nf3 {[%clk 0:03:00.1]}
2... e6 {[%clk 0:02:54.7]} 3. d4 {[%clk 0:02:59.1]} 3... cxd4 {[%clk 0:02:55.6]}
4. Nxd4 {[%clk 0:02:58.8]} 4... Nc6 {[%clk 0:02:54.4]} 5. Nc3 {[%clk 0:02:58.5]}
5... Qc7 {[%clk 0:02:51.2]} 6. g3 {[%clk 0:02:58]} 6... a6 {[%clk 0:02:51.1]} 7.
Bg2 {[%clk 0:02:57.5]} 7... Nf6 {[%clk 0:02:50.4]} 8. O-O {[%clk 0:02:57.1]}
8... h5 {[%clk 0:02:48.1]} 9. h3 {[%clk 0:02:48.1]} 9... Nxd4 {[%clk 0:02:47.4]}
10. Qxd4 {[%clk 0:02:47.3]} 10... Bc5 {[%clk 0:02:47]} 11. Bf4 {[%clk
0:02:24.7]} 11... d6 {[%clk 0:02:45.6]} 12. Qd2 {[%clk 0:02:19.9]} 12... e5
{[%clk 0:02:08.4]} 13. Bg5 {[%clk 0:02:11.4]} 13... Be6 {[%clk 0:02:08]} 14. Nd5
{[%clk 0:01:32]} 14... Bxd5 {[%clk 0:01:50.4]} 15. exd5 {[%clk 0:01:32.9]} 15...
b5 {[%clk 0:01:37.8]} 16. c3 {[%clk 0:01:24.9]} 16... a5 {[%clk 0:01:31.1]} 17.
a4 {[%clk 0:01:12.1]} 17... b4 {[%clk 0:01:27.9]} 18. cxb4 {[%clk 0:01:13]}
18... Bxb4 {[%clk 0:01:28.1]} 19. Qd3 {[%clk 0:01:12.7]} 19... Nd7 {[%clk
0:01:27.9]} 20. Rac1 {[%clk 0:00:48]} 20... Nc5 {[%clk 0:01:27.4]} 21. Qe2
{[%clk 0:00:46.9]} 21... Qd7 {[%clk 0:01:21.9]} 22. f4 {[%clk 0:00:41.1]} 22...
f6 {[%clk 0:01:06.5]} 23. Bh4 {[%clk 0:00:25.8]} 23... Qxa4 {[%clk 0:00:40.4]}
24. fxe5 {[%clk 0:00:22.2]} 24... dxe5 {[%clk 0:00:41.3]} 25. Bxf6 {[%clk
0:00:13.9]} 25... gxf6 {[%clk 0:00:40.2]} 26. Rxf6 {[%clk 0:00:14.8]} 26... Nd7
{[%clk 0:00:40.3]} 27. Re6+ {[%clk 0:00:12.6]} 27... Kd8 {[%clk 0:00:40.2]} 28.
Kh2 {[%clk 0:00:10.5]} 28... h4 {[%clk 0:00:36.6]} 29. Qg4 {[%clk 0:00:06.6]}
29... hxg3+ {[%clk 0:00:36.1]} 30. Kh1 {[%clk 0:00:06.9]} 30... Nf8 {[%clk
0:00:06.8]} 31. Qg5+ {[%clk 0:00:06.4]} 31... Kd7 {[%clk 0:00:06.3]} 32. Qg7+
{[%clk 0:00:06.5]} 32... Kd8 {[%clk 0:00:06.6]} 33. Qf6+ {[%clk 0:00:05.5]}
33... Kd7 {[%clk 0:00:06.3]} 34. Qf7+ {[%clk 0:00:05.6]} 34... Kd8 {[%clk
0:00:06.6]} 35. Qc7# {[%clk 0:00:05.8]} 1-0

[Event "*** Titled Tuesday Blitz"]
[Site "Chess.com"]
[Date "2020.04.07"]
[Round "7"]
[White "Maili15"]
[Black "troisi"]
[Result "0-1"]
[WhiteElo "2272"]
[BlackElo "2080"]
[TimeControl "180+1"]
[EndTime "14:19:00 PDT"]
[Termination "troisi won by checkmate"]

1. d4 {[%clk 0:03:00.9]} 1... Nf6 {[%clk 0:02:57.3]} 2. c4 {[%clk 0:03:00.7]}
2... e6 {[%clk 0:02:58.2]} 3. Nc3 {[%clk 0:03:01.3]} 3... d5 {[%clk 0:02:58.1]}
4. cxd5 {[%clk 0:03:00.8]} 4... exd5 {[%clk 0:02:59]} 5. Bg5 {[%clk 0:03:01.1]}
5... Be6 {[%clk 0:02:55]} 6. e3 {[%clk 0:02:49.9]} 6... Nbd7 {[%clk 0:02:54.8]}
7. Bd3 {[%clk 0:02:38.4]} 7... a6 {[%clk 0:02:54.4]} 8. Nge2 {[%clk 0:02:35.4]}
8... Bd6 {[%clk 0:02:54.7]} 9. Ng3 {[%clk 0:02:31.7]} 9... h6 {[%clk 0:02:53.4]}
10. Bxf6 {[%clk 0:02:31.2]} 10... Qxf6 {[%clk 0:02:53.5]} 11. Qb3 {[%clk
0:02:22.9]} 11... O-O {[%clk 0:02:25.3]} 12. O-O {[%clk 0:02:18.8]} 12... Rab8
{[%clk 0:02:15]} 13. Rac1 {[%clk 0:01:58.1]} 13... c6 {[%clk 0:02:06.7]} 14. Na4
{[%clk 0:01:53.8]} 14... g5 {[%clk 0:02:02.9]} 15. Bb1 {[%clk 0:01:48.5]} 15...
Qe7 {[%clk 0:01:55.5]} 16. a3 {[%clk 0:01:41.9]} 16... f5 {[%clk 0:01:54.9]} 17.
Qd3 {[%clk 0:01:33.9]} 17... Rbe8 {[%clk 0:01:50.7]} 18. b4 {[%clk 0:01:31.9]}
18... Bxg3 {[%clk 0:01:44.9]} 19. hxg3 {[%clk 0:01:29.8]} 19... Nf6 {[%clk
0:01:40.9]} 20. Nc5 {[%clk 0:01:26]} 20... Bc8 {[%clk 0:01:40.6]} 21. a4 {[%clk
0:01:04.1]} 21... h5 {[%clk 0:01:36.2]} 22. b5 {[%clk 0:01:02.2]} 22... h4
{[%clk 0:01:28.1]} 23. gxh4 {[%clk 0:00:54.6]} 23... gxh4 {[%clk 0:01:26.5]} 24.
bxc6 {[%clk 0:00:50.1]} 24... bxc6 {[%clk 0:01:25.6]} 25. Nxa6 {[%clk
0:00:48.8]} 25... Qd6 {[%clk 0:01:22.5]} 26. f3 {[%clk 0:00:28.4]} 26... Re7
{[%clk 0:01:09.8]} 27. Nc5 {[%clk 0:00:14.6]} 27... Rg7 {[%clk 0:01:08.2]} 28.
Kh1 {[%clk 0:00:13.5]} 28... Qg3 {[%clk 0:01:04.3]} 29. Rc2 {[%clk 0:00:12.8]}
29... Nh5 {[%clk 0:00:53.2]} 30. Qe2 {[%clk 0:00:10.4]} 30... h3 {[%clk
0:00:50.3]} 31. Qf2 {[%clk 0:00:10.4]} 31... hxg2+ {[%clk 0:00:48.2]} 32. Qxg2
{[%clk 0:00:10.3]} 32... Qh4+ {[%clk 0:00:48.3]} 33. Kg1 {[%clk 0:00:10.7]}
33... Rxg2+ {[%clk 0:00:45.8]} 34. Rxg2+ {[%clk 0:00:11.6]} 34... Kf7 {[%clk
0:00:45.2]} 35. e4 {[%clk 0:00:10.3]} 35... f4 {[%clk 0:00:42.7]} 36. e5 {[%clk
0:00:09.5]} 36... Ng3 {[%clk 0:00:41]} 37. Re1 {[%clk 0:00:08.4]} 37... Bh3
{[%clk 0:00:36.7]} 38. e6+ {[%clk 0:00:07.6]} 38... Ke7 {[%clk 0:00:35.6]} 39.
Rh2 {[%clk 0:00:07.8]} 39... Nf5 {[%clk 0:00:35.4]} 40. Ree2 {[%clk 0:00:06.9]}
40... Rg8+ {[%clk 0:00:34.8]} 41. Rhg2 {[%clk 0:00:07.2]} 41... Bxg2 {[%clk
0:00:33.1]} 42. Rxg2 {[%clk 0:00:06.7]} 42... Qe1+ {[%clk 0:00:32.5]} 43. Kh2
{[%clk 0:00:06.9]} 43... Rh8# {[%clk 0:00:31]} 0-1

[Event "*** Titled Tuesday Blitz"]
[Site "Chess.com"]
[Date "2020.04.07"]
[Round "7"]
[White "DrMelekess"]
[Black "Cukiero"]
[Result "1-0"]
[WhiteElo "2720"]
[BlackElo "2526"]
[TimeControl "180+1"]
[EndTime "14:19:01 PDT"]
[Termination "DrMelekess won by resignation"]

1. d4 {[%clk 0:03:00.9]} 1... Nf6 {[%clk 0:02:58.6]} 2. Nf3 {[%clk 0:03:01.2]}
2... g6 {[%clk 0:02:57]} 3. c4 {[%clk 0:02:59.9]} 3... Bg7 {[%clk 0:02:56.8]} 4.
g3 {[%clk 0:03:00.5]} 4... c6 {[%clk 0:02:55.7]} 5. Bg2 {[%clk 0:03:00.3]} 5...
d5 {[%clk 0:02:56]} 6. c5 {[%clk 0:03:00.5]} 6... O-O {[%clk 0:02:54.6]} 7. O-O
{[%clk 0:03:00]} 7... Nbd7 {[%clk 0:02:52.4]} 8. Bf4 {[%clk 0:02:58.7]} 8... Re8
{[%clk 0:02:49.1]} 9. Nc3 {[%clk 0:02:57.4]} 9... Nh5 {[%clk 0:02:44.8]} 10. b4
{[%clk 0:02:55.1]} 10... Nxf4 {[%clk 0:02:32]} 11. gxf4 {[%clk 0:02:56]} 11...
Qc7 {[%clk 0:02:31.1]} 12. e3 {[%clk 0:02:53.9]} 12... f6 {[%clk 0:02:19.9]} 13.
Re1 {[%clk 0:01:59.8]} 13... e5 {[%clk 0:02:18.4]} 14. fxe5 {[%clk 0:02:00.7]}
14... fxe5 {[%clk 0:02:18]} 15. e4 {[%clk 0:01:57.4]} 15... exd4 {[%clk
0:01:43]} 16. exd5 {[%clk 0:01:31.9]} 16... Rxe1+ {[%clk 0:01:36.1]} 17. Qxe1
{[%clk 0:01:32.8]} 17... Nf8 {[%clk 0:01:20.3]} 18. d6 {[%clk 0:01:11.5]} 18...
Qf7 {[%clk 0:01:20]} 19. Ne4 {[%clk 0:01:05.4]} 19... Bg4 {[%clk 0:01:17.2]} 20.
Neg5 {[%clk 0:01:01.2]} 20... Qf4 {[%clk 0:01:10.3]} 21. h3 {[%clk 0:00:53.7]}
21... h6 {[%clk 0:00:59.3]} 22. hxg4 {[%clk 0:00:48.9]} 22... hxg5 {[%clk
0:00:59.6]} 23. Qe7 {[%clk 0:00:42.3]} 23... Qf7 {[%clk 0:00:49.8]} 24. Re1
{[%clk 0:00:35.4]} 24... d3 {[%clk 0:00:46]} 25. Qxf7+ {[%clk 0:00:31.2]} 25...
Kxf7 {[%clk 0:00:45.7]} 26. Nxg5+ {[%clk 0:00:32.1]} 26... Kf6 {[%clk
0:00:35.2]} 27. f4 {[%clk 0:00:32]} 27... Bh6 {[%clk 0:00:23.3]} 28. Ne4+ {[%clk
0:00:24.9]} 28... Kf7 {[%clk 0:00:23]} 29. g5 {[%clk 0:00:21.6]} 29... Bg7
{[%clk 0:00:22.8]} 30. Bf1 {[%clk 0:00:20.6]} 30... Bd4+ {[%clk 0:00:19.7]} 31.
Kg2 {[%clk 0:00:19.9]} 31... Ne6 {[%clk 0:00:19.8]} 32. Kg3 {[%clk 0:00:14.9]}
32... d2 {[%clk 0:00:14.8]} 33. Nxd2 {[%clk 0:00:11.4]} 33... Bc3 {[%clk
0:00:15]} 34. Rd1 {[%clk 0:00:10.1]} 34... Re8 {[%clk 0:00:13.2]} 35. a3 {[%clk
0:00:08.4]} 35... Bxd2 {[%clk 0:00:12.9]} 36. Rxd2 {[%clk 0:00:07.8]} 36... Nf8
{[%clk 0:00:13.3]} 37. Bc4+ {[%clk 0:00:08.2]} 37... Kg7 {[%clk 0:00:13.7]} 38.
Re2 {[%clk 0:00:07.8]} 38... Rxe2 {[%clk 0:00:13.5]} 39. Bxe2 {[%clk 0:00:08.7]}
39... Kf7 {[%clk 0:00:14]} 40. Bg4 {[%clk 0:00:08.7]} 40... Ke8 {[%clk
0:00:13.8]} 41. Kf3 {[%clk 0:00:08.6]} 41... b6 {[%clk 0:00:14.1]} 42. Ke4
{[%clk 0:00:08.5]} 42... bxc5 {[%clk 0:00:14.6]} 43. bxc5 {[%clk 0:00:09.4]}
43... a6 {[%clk 0:00:14.8]} 44. Ke5 {[%clk 0:00:09.4]} 44... Kf7 {[%clk
0:00:14.7]} 45. f5 {[%clk 0:00:09.8]} 45... gxf5 {[%clk 0:00:14.8]} 46. Bxf5
{[%clk 0:00:10.7]} 46... Ke8 {[%clk 0:00:15.2]} 47. Kf6 {[%clk 0:00:09.9]} 1-0